[Event "Gaprindashvili Cup Women I Stage 2020"]
[Site "Online"]
[Date "2020.11.04"]
[Round "3.11"]
[White "Kalandadze, Mariam"]
[Black "Limar, Ana"]
[Result "0-1"]
[ECO "D37"]
[WhiteElo "1147"]
[BlackElo "1312"]
[Annotator "NA"]
[PlyCount "82"]
[EventDate "2020.11.04"]
[EventType "swiss"]
[SourceTitle "playchess.com"]
[Source "ChessBase"]
[SourceQuality "1"]
[TimeControl "1500+5"]

1. d4 {[%emt 0:00:07]} d5 {[%emt 0:00:05]} 2. c4 {[%emt 0:00:03]} e6 {[%emt 0:00:05]} 3. Nf3 {[%emt 0:00:03]} Nf6 {[%emt 0:00:04]} 4. Nc3 {[%emt 0:00:02]} Be7 {[%emt 0:00:06]} 5. Bf4 {[%emt 0:00:08]} O-O {[%emt 0:00:32]} 6. e3 {[%emt 0:00:04]} c5 {[%emt 0:00:22]} 7. dxc5 {[%emt 0:00:06]} Bxc5 {[%emt 0:00:10]} 8. a3 {[%emt 0:00:05]} Nc6 {[%emt 0:00:27]} 9. Qd2 {[%emt 0:00:03]} Re8 {[%emt 0:00:45]} 10. Be2 {[%emt 0:00:48]} e5 {[%emt 0:01:38]} 11. Bg5 {[%emt 0:00:13]} d4 {[%emt 0:00:33]} 12. exd4 {[%emt 0:01:05]} exd4 {[%emt 0:00:15]} 13. Nd5 {[%emt 0:00:47]} Be7 {[%emt 0:03:18]} 14. Nxe7+ {[%emt 0:00:32]} Qxe7 {[%emt 0:00:16]} 15. Bxf6 {[%emt 0:00:14]} Qxf6 {[%emt 0:00:07]} 16. O-O {[%emt 0:00:12]} Bg4 {[%emt 0:01:07]} 17. h3 {[%emt 0:01:31]} Bh5 {[%emt 0:00:18]} 18. Rfe1 {[%emt 0:00:31]} Rad8 {[%emt 0:02:23]} 19. Nh2 {[%emt 0:01:19]} Bxe2 {[%emt 0:00:52]} 20. Rxe2 {[%emt 0:00:07]} Rxe2 {[%emt 0:00:26]} 21. Qxe2 {[%emt 0:00:06]} d3 {[%emt 0:00:15]} 22. Qd2 {[%emt 0:00:06]} Qe6 {[%emt 0:00:43]} 23. Rc1 {[%emt 0:00:38]} Qe2 {[%emt 0:00:29]} 24. Rd1 {[%emt 0:00:53]} Qxd2 {[%emt 0:01:51]} 25. Rxd2 {[%emt 0:00:05]} Rd4 {[%emt 0:00:57]} 26. Nf3 {[%emt 0:00:26]} Rd8 {[%emt 0:00:13]} 27. b4 {[%emt 0:00:31]} f6 {[%emt 0:00:46]} 28. Ne1 {[%emt 0:00:43]} Ne5 {[%emt 0:00:09]} 29. c5 {[%emt 0:00:06]} Kf7 {[%emt 0:01:22]} 30. f4 {[%emt 0:00:25]} Nc4 {[%emt 0:00:08]} 31. Rxd3 {[%emt 0:00:33]} Rxd3 {[%emt 0:00:06]} 32. Nxd3 {[%emt 0:00:03]} Nxa3 {[%emt 0:00:02]} 33. Kf2 {[%emt 0:00:04]} Ke6 {[%emt 0:00:10]} 34. Ke3 {[%emt 0:00:43]} Kd5 {[%emt 0:00:24]} 35. Kd2 {[%emt 0:00:36]} Kc4 {[%emt 0:00:33]} 36. g4 {[%emt 0:00:16]} Nb1+ {[%emt 0:01:00]} 37. Kc2 {[%emt 0:00:15]} Nc3 {[%emt 0:00:17]} 38. g5 {[%emt 0:01:12]} Nd5 {[%emt 0:00:55]} 39. gxf6 {[%emt 0:01:39]} gxf6 {[%emt 0:00:09]} 40. h4 {[%emt 0:00:07]} Nxb4+ {[%emt 0:00:11]} 41. Nxb4 {[%emt 0:00:27]} Kxb4 {[%emt 0:00:02]} 0-1

[Event "Gaprindashvili Cup Women I Stage 2020"]
[Site "Online"]
[Date "2020.11.04"]
[Round "3.13"]
[White "Dolakidze, Mariam"]
[Black "Lagazauri, Tamar"]
[Result "0-1"]
[ECO "A13"]
[WhiteElo "1416"]
[BlackElo "1657"]
[Annotator "NA RC"]
[PlyCount "76"]
[EventDate "2020.11.04"]
[EventType "swiss"]
[SourceTitle "playchess.com"]
[Source "ChessBase"]
[SourceQuality "1"]
[TimeControl "1500+5"]

1. Nf3 {[%emt 0:00:00]} Nf6 {[%emt 0:00:05]} 2. g3 {[%emt 0:00:02]} e6 {[%emt 0:00:14]} 3. Bg2 {[%emt 0:00:02]} d5 {[%emt 0:00:02]} 4. c4 {[%emt 0:00:03]} dxc4 {[%emt 0:00:03]} 5. Qa4+ {[%emt 0:00:03]} Bd7 {[%emt 0:00:01]} 6. Qxc4 {[%emt 0:00:01]} Bc6 {[%emt 0:00:03]} 7. Qc2 {[%emt 0:00:12]} Bd6 {[%emt 0:00:54]} 8. Nc3 {[%emt 0:00:14]} O-O {[%emt 0:00:12]} 9. O-O {[%emt 0:00:02]} Qe7 {[%emt 0:04:39]} 10. b3 {[%emt 0:00:48]} Rd8 {[%emt 0:01:17]} 11. Bb2 {[%emt 0:00:09]} Ba3 {[%emt 0:01:00]} 12. Rac1 {[%emt 0:00:55]} Na6 {[%emt 0:00:22]} 13. d3 {[%emt 0:00:25]} Rac8 {[%emt 0:01:31]} 14. Rfd1 {[%emt 0:00:14]} h6 {[%emt 0:01:58]} 15. Bxa3 {[%emt 0:00:15]} Qxa3 {[%emt 0:00:05]} 16. Nb1 {[%emt 0:00:01]} Qe7 {[%emt 0:02:16]} 17. Nbd2 {[%emt 0:00:05]} e5 {[%emt 0:04:48]} 18. Nc4 {[%emt 0:02:25]} e4 {[%emt 0:00:30]} 19. dxe4 {[%emt 0:00:07]} Bxe4 {[%emt 0:00:22]} 20. Qb2 {[%emt 0:00:02]} Rxd1+ {[%emt 0:02:02]} 21. Rxd1 {[%emt 0:00:03]} Rd8 {[%emt 0:00:02]} 22. Rd4 {[%emt 0:00:29]} c5 {[%emt 0:00:54]} 23. Rd2 {[%emt 0:00:26]} b5 {[%emt 0:00:53]} 24. Nce5 {[%emt 0:00:06]} Nb4 {[%emt 0:01:03]} 25. Qc1 {[%emt 0:01:29]} Rd5 {[%emt 0:01:06]} 26. Rxd5 {[%emt 0:00:31]} Nbxd5 {[%emt 0:00:09]} 27. Qd2 {[%emt 0:00:06]} Nb6 {[%emt 0:00:17]} 28. h3 {[%emt 0:00:45]} b4 {[%emt 0:00:16]} 29. Kh2 {[%emt 0:00:12]} Kh7 {[%emt 0:00:03]} 30. Qe3 {[%emt 0:00:29]} Nbd5 {[%emt 0:00:11]} 31. Ng5+ {[%emt 0:00:31]} hxg5 {[%emt 0:00:06]} 32. Bxe4+ {[%emt 0:00:02]} Kg8 {[%emt 0:00:07]} 33. Bxd5 {[%emt 0:00:10]} Nxd5 {[%emt 0:00:02]} 34. Qe4 {[%emt 0:00:02]} Nc3 {[%emt 0:00:07]} 35. Qf5 {[%emt 0:02:54]} g6 {[%emt 0:00:02]} 36. Qc8+ {[%emt 0:00:43]} Kg7 {[%emt 0:00:01]} 37. Nf3 {[%emt 0:00:46]} Qxe2 {[%emt 0:00:04]} 38. Kg2 {[%emt 0:00:04]} Ne4 {[%emt 0:00:04]} 0-1

[Event "Gaprindashvili Cup Women I Stage 2020"]
[Site "Online"]
[Date "2020.11.04"]
[Round "4.1"]
[White "Lagazauri, Tamar"]
[Black "Esadze, Tamari"]
[Result "0-1"]
[ECO "E16"]
[WhiteElo "1657"]
[BlackElo "1889"]
[Annotator "NA RC"]
[PlyCount "92"]
[EventDate "2020.11.04"]
[EventType "swiss"]
[SourceTitle "playchess.com"]
[Source "ChessBase"]
[SourceQuality "1"]
[TimeControl "1500+5"]

1. d4 {[%emt 0:00:00]} Nf6 {[%emt 0:00:03]} 2. Nf3 {[%emt 0:00:11]} e6 {[%emt 0:00:04]} 3. c4 {[%emt 0:00:03]} b6 {[%emt 0:00:03]} 4. g3 {[%emt 0:00:47]} Bb7 {[%emt 0:00:03]} 5. Bg2 {[%emt 0:00:02]} Bb4+ {[%emt 0:00:08]} 6. Bd2 {[%emt 0:00:08]} Bxd2+ {[%emt 0:00:02]} 7. Nbxd2 {[%emt 0:00:21]} O-O {[%emt 0:00:03]} 8. O-O {[%emt 0:00:05]} d6 {[%emt 0:01:18]} 9. Qc2 {[%emt 0:00:15]} Nbd7 {[%emt 0:00:33]} 10. e4 {[%emt 0:01:49]} e5 {[%emt 0:00:57]} 11. d5 {[%emt 0:01:35] [#] E16: Queen's Indian: 4 g3 Bb7 5 Bg2 Bb4+.} a6 $146 {[%emt 0:00:44]} ({Predecessor:} 11... a5 12. Ne1 c6 13. Nd3 cxd5 14. exd5 Qc7 15. Rac1 Rae8 16. Rfe1 Nc5 17. Nxc5 bxc5 18. Re3 Nd7 19. Ra3 f5 {0-1 (58) Voit,D (2336)-Koneru,H (2574) Moscow 2019}) 12. b4 {[%emt 0:00:14]} Qe7 {[%emt 0:01:12]} 13. Nb3 {[%emt 0:00:38]} c5 {[%emt 0:01:12]} 14. bxc5 {[%emt 0:03:35]} Nxc5 {[%emt 0:00:03]} 15. Nxc5 {[%emt 0:00:24]} bxc5 {[%emt 0:00:31]} 16. a4 {[%emt 0:03:14]} a5 {[%emt 0:00:42]} 17. Nd2 {[%emt 0:00:04]} Rfb8 {[%emt 0:02:44]} 18. Nb1 {[%emt 0:00:45]} Ba6 {[%emt 0:00:35]} 19. Na3 {[%emt 0:00:15]} Rb4 {[%emt 0:01:37]} 20. Nb5 {[%emt 0:00:53]} Nd7 {[%emt 0:01:06]} 21. Rfb1 {[%emt 0:06:38]} Nb6 {[%emt 0:00:58]} 22. Rxb4 {[%emt 0:01:51]} (22. Bf1 $11 {remains equal.}) 22... cxb4 {[%emt 0:00:19]} 23. c5 {[%emt 0:00:02]} dxc5 {[%emt 0:00:35]} 24. d6 {[%emt 0:00:01] [#]} Qd7 $1 {[%emt 0:00:06]} 25. Nc7 {[%emt 0:01:32] [#]} c4 $1 {[%emt 0:02:24]} 26. Nxa8 {[%emt 0:01:39]} Nxa8 {[%emt 0:00:02]} 27. Qd2 {[%emt 0:00:07]} Nb6 {[%emt 0:00:46]} 28. Rd1 {[%emt 0:00:07]} (28. Bf1 $17) 28... c3 {[%emt 0:00:19]} 29. Qe3 {[%emt 0:00:04]} (29. Qc2 $142) 29... c2 {[%emt 0:01:16]} 30. Rc1 {[%emt 0:00:02]} Qxd6 {[%emt 0:00:01]} 31. Bf3 {[%emt 0:00:01]} Nc4 {[%emt 0:00:41]} 32. Qa7 {[%emt 0:00:04]} g6 {[%emt 0:00:31]} 33. Rxc2 {[%emt 0:00:03]} b3 {[%emt 0:00:18]} 34. Rc1 {[%emt 0:00:13]} b2 {[%emt 0:00:06]} 35. Rb1 {[%emt 0:00:06]} Nd2 {[%emt 0:00:46]} 36. Rxb2 {[%emt 0:00:02]} Nxf3+ {[%emt 0:00:06]} 37. Kg2 {[%emt 0:00:01]} Ne1+ $2 {[%emt 0:00:18]} (37... Qd3 38. Rb5 Bxb5 39. axb5 Ne1+ 40. Kg1 Qxe4) 38. Kh1 $2 {[%emt 0:00:08]} Bd3 {[%emt 0:00:43]} 39. Qb8+ {[%emt 0:00:07]} Qxb8 {[%emt 0:00:01]} 40. Rxb8+ {[%emt 0:00:02]} Kg7 {[%emt 0:00:01]} 41. Kg1 $19 {[%emt 0:00:09]} Bxe4 {[%emt 0:00:14]} 42. Rb5 {[%emt 0:00:03]} Nf3+ {[%emt 0:00:05]} 43. Kf1 {[%emt 0:00:02]} Bd3+ {[%emt 0:00:01]} 44. Kg2 {[%emt 0:00:05]} Bxb5 {[%emt 0:00:09]} 45. axb5 {[%emt 0:00:02]} Nd4 {[%emt 0:00:01]} 46. b6 {[%emt 0:00:02]} a4 {[%emt 0:00:03]} 0-1

[Event "Gaprindashvili Cup Women I Stage 2020"]
[Site "Online"]
[Date "2020.11.04"]
[Round "4.2"]
[White "Tsotsonava, Elene"]
[Black "Bedoshvili, Dea"]
[Result "1-0"]
[ECO "B12"]
[WhiteElo "1805"]
[BlackElo "1667"]
[Annotator "NA RC"]
[PlyCount "61"]
[EventDate "2020.11.04"]
[EventType "swiss"]
[SourceTitle "playchess.com"]
[Source "ChessBase"]
[SourceQuality "1"]
[TimeControl "1500+5"]

1. e4 {[%emt 0:00:01]} c6 {[%emt 0:00:03]} 2. d4 {[%emt 0:00:02]} d5 {[%emt 0:00:03]} 3. e5 {[%emt 0:00:01]} Bf5 {[%emt 0:00:03]} 4. h4 {[%emt 0:00:03]} Qb6 {[%emt 0:00:02]} 5. g4 {[%emt 0:00:58]} Bd7 {[%emt 0:00:04]} 6. h5 {[%emt 0:00:11] B12: Caro-Kann: Advance Variation.} h6 {[%emt 0:00:12]} 7. c3 {[%emt 0:00:26]} e6 {[%emt 0:00:21]} 8. f4 {[%emt 0:00:38]} c5 {[%emt 0:00:12]} 9. Nf3 {[%emt 0:00:02]} Nc6 {[%emt 0:00:05]} 10. Na3 {[%emt 0:00:53] 10.Rh2 is the modern continuation.} cxd4 {[%emt 0:00:36]} 11. cxd4 {[%emt 0:00:03]} Bb4+ {[%emt 0:00:20]} 12. Kf2 {[%emt 0:00:40]} f6 {[%emt 0:01:14] [#]} 13. Kg3 $146 {[%emt 0:00:22]} ({Predecessor:} 13. Nc2 fxe5 14. fxe5 O-O-O 15. Bd3 Rf8 16. Be3 Be7 17. Qe2 Bg5 18. b3 Bxe3+ 19. Qxe3 {0-1 (37) Manik,M (2407)-Smolen,J (2437) Slovakia 2015}) 13... Nge7 {[%emt 0:00:34]} 14. Nc2 {[%emt 0:00:11]} Nc8 {[%emt 0:03:09]} 15. Bd3 {[%emt 0:00:18]} Kf8 {[%emt 0:01:09]} (15... a5 $16 {was necessary.}) 16. Nh4 {[%emt 0:01:35]} Be8 {[%emt 0:00:32]} (16... Ke8 $142 17. Ng6 Rg8) 17. Be3 {[%emt 0:00:40]} Qd8 {[%emt 0:01:22]} 18. Qf3 {[%emt 0:01:49]} Ba5 {[%emt 0:00:34]} 19. Raf1 {[%emt 0:03:57]} Bc7 {[%emt 0:02:57]} 20. Kh3 {[%emt 0:00:31]} Ke7 $2 {[%emt 0:00:38]} (20... N8e7 21. f5 Bxe5 22. dxe5 Nxe5) 21. f5 {[%emt 0:06:36]} Rf8 {[%emt 0:02:47]} 22. fxe6 {[%emt 0:00:43]} Kxe6 {[%emt 0:00:22]} 23. Nf5 $18 {[%emt 0:00:58]} Rf7 {[%emt 0:00:50]} 24. Nxg7+ {[%emt 0:01:28]} Rxg7 {[%emt 0:00:19]} 25. Qf5+ {[%emt 0:00:51]} Kf7 {[%emt 0:00:07]} 26. exf6 {[%emt 0:00:02]} Nd6 {[%emt 0:05:07]} 27. Qxd5+ {[%emt 0:00:07]} Kf8 {[%emt 0:00:06]} 28. fxg7+ {[%emt 0:00:34]} Kxg7 {[%emt 0:00:03]} 29. Bxh6+ {[%emt 0:00:14]} Kxh6 {[%emt 0:00:24]} 30. Qe6+ {[%emt 0:00:05]} Kg5 {[%emt 0:00:37]} 31. Qe3# {[%emt 0:00:10]} 1-0

[Event "Gaprindashvili Cup Women I Stage 2020"]
[Site "Online"]
[Date "2020.11.04"]
[Round "4.3"]
[White "Khazhomia, Anuki"]
[Black "Mgeladze, Kesaria"]
[Result "1-0"]
[ECO "E97"]
[WhiteElo "1880"]
[BlackElo "1380"]
[Annotator "NA RC"]
[PlyCount "143"]
[EventDate "2020.11.04"]
[EventType "swiss"]
[SourceTitle "playchess.com"]
[Source "ChessBase"]
[SourceQuality "1"]
[TimeControl "1500+5"]

{[%evp 17,142,1,53,35,62,62,60,60,57,61,55,55,64,55,72,36,39,32767,32767,32767,206,41,68,-11,-6,-15,-14,-13,-16,-15,-12,-12,-11,-13,-58,-15,-7,-4,32767,32767,-15,-126,-25,-163,32767,32767,-56,-55,-39,32767,32767,32767,408,389,32767,32767,32767,32767,453,423,486,32767,32767,32767,32767,459,456,476,473,495,568,32767,32767,32767,32767,32767,32767,32767,494,443,487,32767,32767,32767,497,32767,32767,516,488,32767,32767,483,524,541,32767,512,510,545,591,527,32767,32767,32767,32767,510,794,1585,982,1314,817,32767,32767,32767,32767,780,860,32767,32767,32767,32767,1475,1777,1581,1791,1657,1628,29988]} 1. d4 {[%emt 0:00:03]} Nf6 {[%emt 0:02:53]} 2. c4 {[%emt 0:00:03]} g6 {[%emt 0:00:02]} 3. Nc3 {[%emt 0:00:03]} Bg7 {[%emt 0:00:01]} 4. e4 {[%emt 0:00:03]} d6 {[%emt 0:00:02]} 5. Nf3 {[%emt 0:00:02]} O-O {[%emt 0:00:02]} 6. Be2 {[%emt 0:00:02]} e5 {[%emt 0:00:05]} 7. dxe5 {[%emt 0:00:47]} dxe5 {[%emt 0:00:02]} 8. O-O {[%emt 0:00:02]} Nc6 {[%emt 0:00:21]} 9. Bg5 {[%emt 0:00:41]} Be6 {[%emt 0:00:42]} 10. Qxd8 {[%emt 0:01:08] E97: King's Indian: Classical Main Line (6...e5 7 0-0 Nc6): 8 Be3 and 8 d5 Ne7, not 9 Ne1.} Raxd8 {[%emt 0:00:13]} 11. Nd5 {[%emt 0:01:28]} Bxd5 {[%emt 0:01:45]} 12. cxd5 {[%emt 0:00:04]} Nb8 {[%emt 0:01:20]} 13. Nxe5 {[%emt 0:07:20]} Rde8 {[%emt 0:02:04]} 14. Bxf6 $1 {[%emt 0:00:05]} Bxf6 {[%emt 0:00:03]} 15. Ng4 {[%emt 0:00:04] [#]} Bd4 $146 {[%emt 0:00:13]} ({Predecessor:} 15... Bxb2 16. Rab1 Bd4 17. Rb4 c5 18. Rxd4 cxd4 19. Nf6+ Kg7 20. Nxe8+ Rxe8 21. f3 f5 {½-½ (71) Mayrhuber,N (2117)-Kubicka,A (2221) Balatonszarszo 2017}) 16. Bd3 {[%emt 0:03:15]} h5 {[%emt 0:00:48]} 17. Ne3 {[%emt 0:00:10]} Nd7 {[%emt 0:01:45]} 18. Bb5 {[%emt 0:00:52]} Re7 {[%emt 0:00:55] [#]} (18... Bxe3 $14 19. fxe3 (19. Bxd7 Re7 $16) 19... Re7) 19. Bxd7 $2 {[%emt 0:00:04]} (19. d6 $1 $18 {[%cal Rd6e7][%mdl 512]} cxd6 20. Nd5) 19... Rxd7 {[%emt 0:00:02]} 20. Nc2 {[%emt 0:00:49]} (20. Rad1 $14 Bg7 21. Rfe1) 20... Bb6 {[%emt 0:00:07]} 21. Rad1 {[%emt 0:02:22]} Re8 {[%emt 0:00:23]} 22. Rfe1 {[%emt 0:02:53]} Rde7 {[%emt 0:00:05]} 23. d6 {[%emt 0:02:31]} cxd6 {[%emt 0:00:06]} 24. Rxd6 {[%emt 0:00:04]} Rxe4 {[%emt 0:00:02]} 25. Kf1 {[%emt 0:00:53]} Rxe1+ {[%emt 0:02:21]} 26. Nxe1 {[%emt 0:00:04]} Ba5 {[%emt 0:00:10]} 27. Nd3 {[%emt 0:00:18]} Re7 {[%emt 0:00:30]} 28. f3 {[%emt 0:00:04]} Kf8 {[%emt 0:00:25]} ({Black should play} 28... Bc7 $17 29. Rd5 Bxh2) 29. Kf2 {[%emt 0:00:04]} (29. Rd5 $11 {remains equal.} Bb6 30. a4) 29... Rc7 {[%emt 0:00:23]} ({Black should try} 29... Bb6+ $17 30. Kf1 Bc7) 30. b4 {[%emt 0:00:19]} (30. Rd8+ $11 {and White is okay.} Kg7 31. Re8) 30... Bb6+ {[%emt 0:00:11]} 31. Kf1 {[%emt 0:00:04]} Ke7 {[%emt 0:00:08]} 32. Rd5 {[%emt 0:00:05]} Ke6 {[%emt 0:00:04]} 33. Nf4+ {[%emt 0:00:04]} Ke7 {[%emt 0:00:05]} 34. Rd2 {[%emt 0:00:08]} Be3 $2 {[%emt 0:00:08]} (34... Rc1+ $15 35. Ke2 Bg1) 35. Nd5+ {[%emt 0:00:03] Double Attack} Kf8 {[%emt 0:00:25]} 36. Nxe3 {[%emt 0:00:02]} Rc1+ {[%emt 0:00:10]} 37. Ke2 {[%emt 0:00:02]} Rb1 {[%emt 0:00:05]} 38. a3 {[%emt 0:00:05]} Rb3 {[%emt 0:00:06]} 39. Rd3 {[%emt 0:00:03]} Rb2+ {[%emt 0:00:04]} 40. Kd1 {[%emt 0:00:03]} Ke7 {[%emt 0:00:09]} 41. Kc1 {[%emt 0:00:04]} Re2 {[%emt 0:00:06]} 42. Nd5+ {[%emt 0:00:06]} Kf8 {[%emt 0:00:03]} 43. Nf4 {[%emt 0:00:08]} Rf2 {[%emt 0:00:16]} 44. Rd2 {[%emt 0:00:08]} Rf1+ {[%emt 0:00:04]} 45. Kc2 {[%emt 0:00:02]} Ra1 {[%emt 0:00:06]} 46. Kb2 {[%emt 0:00:03]} Rh1 {[%emt 0:00:06]} 47. h3 {[%emt 0:00:03]} Rg1 {[%emt 0:00:11]} 48. Kc3 {[%emt 0:00:06]} Ke7 {[%emt 0:00:05]} 49. Nd5+ {[%emt 0:00:06]} Kf8 {[%emt 0:00:04]} 50. Kc4 {[%emt 0:00:09]} Ra1 {[%emt 0:00:08]} 51. Kb3 {[%emt 0:00:10]} Rb1+ {[%emt 0:00:10]} 52. Ka2 {[%emt 0:00:17]} Rg1 {[%emt 0:00:03]} 53. Rc2 {[%emt 0:00:02]} Kg7 {[%emt 0:00:09]} 54. a4 {[%emt 0:00:12]} Kf8 {[%emt 0:00:04]} 55. Kb3 {[%emt 0:00:03]} Rd1 {[%emt 0:00:09]} 56. Ne3 {[%emt 0:00:11]} Rd3+ {[%emt 0:00:23]} 57. Rc3 {[%emt 0:00:08]} Rd2 {[%emt 0:00:03]} 58. Kc4 {[%emt 0:00:13]} Kg7 {[%emt 0:00:21]} 59. Rd3 {[%emt 0:00:04]} Ra2 {[%emt 0:00:05]} 60. a5 {[%emt 0:00:04]} Re2 {[%emt 0:00:10]} 61. b5 {[%emt 0:00:05]} f5 {[%emt 0:00:24]} 62. f4 {[%emt 0:00:16]} Rf2 {[%emt 0:00:09]} 63. g3 {[%emt 0:00:04]} Ra2 {[%emt 0:00:29]} 64. Kb4 {[%emt 0:00:02]} Rb2+ {[%emt 0:00:09]} 65. Rb3 {[%emt 0:00:02]} Re2 {[%emt 0:00:08]} 66. b6 {[%emt 0:00:02]} axb6 {[%emt 0:00:09]} 67. axb6 {[%emt 0:00:02]} Kh6 {[%emt 0:00:07]} 68. Nc4 {[%emt 0:00:03]} Re4 {[%emt 0:00:03]} 69. Kc5 {[%emt 0:00:04]} h4 {[%emt 0:00:27]} 70. Nd6 $18 {[%emt 0:00:07]} Re7 {[%emt 0:00:02]} 71. Ra3 {[%emt 0:00:06]} g5 {[%emt 0:00:17]} 72. Nxf5+ {[%emt 0:00:03]} 1-0

[Event "Gaprindashvili Cup Women I Stage 2020"]
[Site "Online"]
[Date "2020.11.04"]
[Round "4.4"]
[White "Abuladze, Natali"]
[Black "Maghlakelidze, Rusudan"]
[Result "1-0"]
[ECO "E70"]
[WhiteElo "1049"]
[BlackElo "1613"]
[Annotator "NA RC"]
[PlyCount "83"]
[EventDate "2020.11.04"]
[EventType "swiss"]
[SourceTitle "playchess.com"]
[Source "ChessBase"]
[SourceQuality "1"]
[TimeControl "1500+5"]

1. d4 {[%emt 0:00:03]} Nf6 {[%emt 0:00:03]} 2. c4 {[%emt 0:00:04]} g6 {[%emt 0:00:02]} 3. Nc3 {[%emt 0:00:14]} Bg7 {[%emt 0:00:02]} 4. e4 {[%emt 0:00:07]} O-O {[%emt 0:00:03]} 5. e5 {[%emt 0:00:26]} Ne8 {[%emt 0:00:03]} 6. f4 {[%emt 0:00:19]} d6 {[%emt 0:00:06]} 7. Nf3 {[%emt 0:00:10]} dxe5 {[%emt 0:00:02]} 8. Nxe5 {[%emt 0:00:27]} Nd7 {[%emt 0:07:50]} 9. Be3 {[%emt 0:01:43]} Nd6 {[%emt 0:00:52]} 10. Bd3 {[%emt 0:01:05]} Nxe5 {[%emt 0:00:23]} 11. dxe5 {[%emt 0:00:14]} Nf5 {[%emt 0:01:38]} 12. Qd2 {[%emt 0:00:36]} c6 {[%emt 0:00:59]} 13. O-O-O {[%emt 0:00:39]} Qa5 {[%emt 0:02:03]} 14. Bf2 {[%emt 0:01:45]} Rd8 {[%emt 0:02:22]} 15. Qe1 {[%emt 0:00:44]} Be6 {[%emt 0:02:30]} 16. Kb1 {[%emt 0:01:23]} Nh6 {[%emt 0:04:56]} 17. Ne4 {[%emt 0:01:39]} Qxe1 {[%emt 0:00:05]} 18. Rhxe1 {[%emt 0:00:10]} b6 {[%emt 0:00:45]} 19. h3 {[%emt 0:00:30]} Nf5 {[%emt 0:01:30]} 20. g4 {[%emt 0:00:12]} Nd4 {[%emt 0:00:03]} 21. Nc3 {[%emt 0:01:18]} Rac8 {[%emt 0:00:17]} 22. Bxd4 {[%emt 0:00:19]} Rxd4 {[%emt 0:00:02]} 23. Ne2 {[%emt 0:00:25]} Rdd8 {[%emt 0:00:07]} 24. b3 {[%emt 0:01:09]} f6 {[%emt 0:00:06]} 25. exf6 {[%emt 0:00:16]} Bxf6 {[%emt 0:00:05]} 26. f5 {[%emt 0:00:23]} gxf5 {[%emt 0:00:03]} 27. g5 {[%emt 0:01:38]} Bg7 {[%emt 0:00:10]} 28. Nf4 {[%emt 0:00:14]} Bd7 {[%emt 0:00:06]} 29. Rxe7 {[%emt 0:00:10]} Kf8 {[%emt 0:00:01]} 30. Re3 {[%emt 0:00:37]} Re8 {[%emt 0:00:04]} 31. Rde1 {[%emt 0:00:35]} Rxe3 {[%emt 0:00:02]} 32. Rxe3 {[%emt 0:00:04]} Re8 {[%emt 0:00:02]} 33. Rxe8+ {[%emt 0:00:23]} Kxe8 {[%emt 0:00:03]} 34. Kc2 {[%emt 0:00:13]} Be5 {[%emt 0:00:04]} 35. Ng2 {[%emt 0:00:16]} Kf7 {[%emt 0:00:05]} 36. Nh4 {[%emt 0:00:59]} f4 {[%emt 0:00:17]} 37. Bxh7 {[%emt 0:00:14]} Bxh3 {[%emt 0:00:03]} 38. Bg6+ {[%emt 0:00:27]} Kg7 {[%emt 0:00:03]} 39. Kd3 {[%emt 0:00:53]} Bg4 {[%emt 0:00:10]} 40. Ke4 {[%emt 0:00:16]} Bc7 {[%emt 0:00:04]} 41. Be8 {[%emt 0:00:10]} c5 {[%emt 0:00:06]} 42. Bc6 {[%emt 0:00:21]} 1-0

[Event "Gaprindashvili Cup Women I Stage 2020"]
[Site "Online"]
[Date "2020.11.04"]
[Round "4.5"]
[White "Antia, Sopia"]
[Black "Asatiani, Tamar"]
[Result "1/2-1/2"]
[ECO "A16"]
[WhiteElo "1594"]
[BlackElo "1004"]
[Annotator "NA RC"]
[PlyCount "70"]
[EventDate "2020.11.04"]
[EventType "swiss"]
[SourceTitle "playchess.com"]
[Source "ChessBase"]
[SourceQuality "1"]
[TimeControl "1500+5"]

1. c4 {[%emt 0:00:07]} e6 {[%emt 0:00:25]} 2. g3 {[%emt 0:00:32]} Nf6 {[%emt 0:00:13]} 3. Bg2 {[%emt 0:00:07]} d5 {[%emt 0:00:10]} 4. cxd5 {[%emt 0:00:31]} Nxd5 {[%emt 0:00:04]} 5. Nc3 {[%emt 0:00:11]} Nxc3 {[%emt 0:00:09]} 6. bxc3 {[%emt 0:00:04]} Nc6 {[%emt 0:00:09]} 7. d4 {[%emt 0:00:24]} Be7 {[%emt 0:00:23]} 8. e4 {[%emt 0:01:14]} O-O {[%emt 0:00:26]} 9. f4 {[%emt 0:00:48]} Re8 {[%emt 0:01:03]} 10. Nf3 {[%emt 0:00:16]} Rb8 {[%emt 0:01:37]} 11. O-O {[%emt 0:00:35]} b6 {[%emt 0:00:23]} 12. Bb2 {[%emt 0:05:40]} b5 {[%emt 0:00:39]} 13. Qc1 {[%emt 0:01:26]} Ba6 {[%emt 0:00:58]} 14. Rd1 {[%emt 0:00:32]} Qc8 {[%emt 0:00:36]} 15. d5 {[%emt 0:01:01]} Bc5+ {[%emt 0:00:23]} 16. Kh1 {[%emt 0:00:03]} Na5 {[%emt 0:00:37]} 17. Ne5 {[%emt 0:00:29]} exd5 {[%emt 0:01:22]} 18. exd5 {[%emt 0:00:05]} Nc4 {[%emt 0:01:28]} 19. Nxc4 {[%emt 0:01:50]} bxc4 {[%emt 0:00:04]} 20. Ba3 {[%emt 0:00:03]} Be3 {[%emt 0:01:52]} 21. Qc2 {[%emt 0:00:08]} Bb5 {[%emt 0:02:24]} 22. Bc1 {[%emt 0:02:12]} Qd7 {[%emt 0:01:47]} 23. a4 {[%emt 0:00:10]} Bxc1 {[%emt 0:00:42]} 24. Rdxc1 {[%emt 0:00:06]} Ba6 {[%emt 0:00:11]} 25. Rd1 {[%emt 0:01:36]} Rb6 {[%emt 0:01:23]} 26. a5 {[%emt 0:00:32]} Rd6 {[%emt 0:00:11]} 27. Rab1 {[%emt 0:00:48]} Bb5 {[%emt 0:00:12]} 28. Be4 {[%emt 0:01:04]} g6 {[%emt 0:00:39]} 29. Qg2 {[%emt 0:02:40]} c6 {[%emt 0:01:07]} 30. Bf3 {[%emt 0:00:26]} Ba4 {[%emt 0:00:59]} 31. Rd2 {[%emt 0:00:09]} Rd8 {[%emt 0:00:25]} 32. Ra1 {[%emt 0:00:52]} Bb5 {[%emt 0:00:52]} 33. Rad1 {[%emt 0:00:12]} Ba4 {[%emt 0:00:06]} 34. Ra1 {[%emt 0:00:02]} Bb5 {[%emt 0:00:31]} 35. Rad1 {[%emt 0:00:02]} Ba4 {[%emt 0:00:09]} 1/2-1/2